fUSD/lending_fUSD_20240421
["ID","MTS","AMOUNT","RATE_DAILY","PERIOD"]
[323130615,1713701438835,-505.80212384,0.00015993,2]
[323130617,1713701438844,-683.13738738,0.00015993,2]
[323130620,1713701438852,-589.28949907,0.00015993,2]
[323130623,1713701438862,-450.0,0.00015993,2]
[323130626,1713701438871,-240.07518187,0.00015994,2]
[323130628,1713701438880,-155.0,0.00016,2]
[323130630,1713701438889,-150.0,0.00016,2]
[323130632,1713701438898,-2126.704,0.00016003,2]
[323130634,1713701438908,-461.0,0.00016003,2]
[323130636,1713701438917,-969.0,0.00016003,2]
[323130638,1713701438926,-269.26,0.00016003,2]
[323130640,1713701438934,-307.674,0.00016003,2]
[323130641,1713701438944,-195.0,0.00016003,2]
[323130642,1713701438954,-200.0,0.00016016,2]
[323130643,1713701438963,-1000.0,0.00016016,2]
[323130644,1713701438972,-500.0,0.00016016,2]
[323130645,1713701438981,-1025.06,0.0001611,10]
[323130646,1713701438991,-166.103193,0.00016164,2]
[323130647,1713701439000,-450.0,0.00016193,2]
[323130648,1713701439009,-1792.4547,0.0001627,2]
[323130649,1713701439018,-2458.68456501,0.00016296,2]
[323130650,1713701439027,-2343.30196802,0.00016328,2]
[323130651,1713701439036,-6731.97900381,0.00016336,2]
[323130652,1713701439045,-182.26159151,0.00016338,2]
[323130653,1713701439054,-14126.86328898,0.00016338,2]
[323130654,1713701439063,-10000.0,0.00016388,2]
[323130655,1713701439073,-450.0,0.00016393,2]
[323130656,1713701439081,-482.0,0.000164,2]
[323130657,1713701439090,-7355.734026,0.00016425,2]
[323130658,1713701439099,-2023.0814753,0.00016425,2]
[323130659,1713701439109,-5310.1792484,0.00016425,2]
[323130660,1713701439118,-30349.7322928,0.00016425,2]
[323130661,1713701439127,-428.46828701,0.00016428,2]
[323130662,1713701439136,-151.57,0.00016428,2]
[323130663,1713701439145,-1651.47,0.00016435,2]
[323130664,1713701439154,-174.67787254,0.00016436,2]
[323130665,1713701439164,-249.52796376,0.00016436,2]
[323130666,1713701439173,-192.53344885,0.00016436,2]
[323130667,1713701439183,-171.06528897,0.00016436,2]
[323130668,1713701439192,-156.31581904,0.00016436,2]
[323130669,1713701439203,-191.35575977,0.00016436,2]
[323130670,1713701439213,-50079.96922851,0.00016436,2]
[323130671,1713701439224,-6542.9,0.00016436,2]
[323130672,1713701439243,-815.0,0.00016436,2]
[323130673,1713701439265,-6183.04925132,0.00016436,2]
[323130674,1713701439274,-268.00161356,0.00016436,2]
[323130675,1713701439284,-155.42552287,0.00016436,2]
[323130676,1713701439294,-475.34644503,0.00016436,2]
[323130677,1713701439304,-254.11589084,0.00016436,2]
[323130678,1713701439313,-1122.2840628,0.00016436,2]
[323130679,1713701439322,-156.22471055,0.00016436,2]
[323130680,1713701439333,-408.17490843,0.00016436,2]
[323130681,1713701439342,-22439.42561553,0.00016436,2]
[323130682,1713701439351,-701.80829018,0.00016436,2]
[323130683,1713701439360,-199.84105151,0.00016436,2]
[323130684,1713701439369,-373.26381835,0.00016436,2]
[323130685,1713701439379,-1950.34939427,0.00016437,2]
[323130686,1713701439388,-206.98170683,0.00016437,2]
[323130687,1713701439397,-5841.86877358,0.00016437,2]
[323130688,1713701439406,-300.0,0.00016437,2]
[323130689,1713701439416,-665.38,0.00016438,2]
[323130690,1713701439426,-672.26,0.00016438,2]
[323130691,1713701439436,-639.47,0.00016438,2]
[323130692,1713701439445,-500.0,0.00016438,2]
[323130693,1713701439455,-782.39,0.00016438,2]
[323130694,1713701439465,-500.0,0.00016438,2]
[323130695,1713701439475,-500.0,0.00016438,2]
[323130696,1713701439485,-500.0,0.00016438,2]
[323130697,1713701439494,-500.0,0.00016438,2]
[323130698,1713701439503,-500.0,0.00016438,2]
[323130699,1713701439512,-526.31,0.00016438,2]
[323130700,1713701439521,-221.71,0.00016438,2]
[323130701,1713701439530,-250.0,0.00016438,2]
[323130702,1713701439539,-588.18,0.00016438,2]
[323130703,1713701439549,-969.93,0.00016438,2]
[323130704,1713701439558,-500.0,0.00016438,2]
[323130705,1713701439568,-155.0,0.00016438,2]
[323130706,1713701439577,-500.0,0.00016438,2]
[323130707,1713701439588,-500.0,0.00016438,2]
[323130708,1713701439597,-500.0,0.00016438,2]
[323130709,1713701439607,-450.11,0.00016438,2]
[323130710,1713701439616,-599.67,0.00016438,2]
[323130711,1713701439625,-452.4,0.00016438,2]
[323130712,1713701439637,-628.71,0.00016438,2]
[323130713,1713701439648,-500.0,0.00016438,2]
[323130714,1713701439657,-500.0,0.00016438,2]
[323130715,1713701439667,-500.0,0.00016438,2]
[323130716,1713701439676,-911.79,0.00016438,2]
[323130717,1713701439685,-236.99162521,0.00016438,2]
[323130718,1713701439694,-428.22,0.00016438,2]
[323130719,1713701439704,-716.98,0.00016438,2]
[323130720,1713701439713,-500.0,0.00016438,2]
[323130721,1713701439722,-433.55,0.00016438,2]
[323130722,1713701439733,-177.98333497,0.00016438,2]
[323130723,1713701439742,-305.31,0.00016438,2]
[323130724,1713701439752,-500.0,0.00016438,2]
[323130725,1713701439764,-500.0,0.00016438,2]
[323130726,1713701439773,-500.0,0.00016438,2]
[323130727,1713701439782,-500.0,0.00016438,2]
[323130728,1713701439791,-500.0,0.00016438,2]
[323130729,1713701439800,-504.05876177,0.00016438,2]
[323130730,1713701439810,-542.12,0.00016438,2]
[323130731,1713701439819,-302.65321084,0.00016438,2]
[323130732,1713701439829,-214.62,0.00016438,2]
[323130733,1713701439838,-549.47,0.00016438,2]
[323130734,1713701439847,-500.0,0.00016438,2]
[323130735,1713701439857,-500.0,0.00016438,2]
[323130736,1713701439866,-221.02,0.00016438,2]
[323130737,1713701439875,-500.0,0.00016438,2]
[323130738,1713701439885,-483.64935157,0.00016438,2]
[323130739,1713701439894,-500.0,0.00016438,2]
[323130740,1713701439903,-590.75,0.00016438,2]
[323130741,1713701439913,-522.84,0.00016438,2]
[323130742,1713701439922,-300.2203911,0.00016438,2]
[323130743,1713701439932,-253.52,0.00016438,2]
[323130744,1713701439942,-568.11,0.00016438,2]
[323130745,1713701439953,-851.02,0.00016438,2]
[323130746,1713701439962,-500.36,0.00016438,2]
[323130747,1713701439971,-757.25,0.00016438,2]
[323130748,1713701439981,-998.62,0.00016438,2]
[323130749,1713701439990,-155.12582299,0.00016438,2]
[323130750,1713701440000,-664.11,0.00016438,2]
[323130751,1713701440010,-500.0,0.00016438,2]
[323130752,1713701440019,-1424.32,0.00016438,2]
[323130753,1713701440028,-476.9,0.00016438,2]
[323130754,1713701440037,-729.33,0.00016438,2]
[323130755,1713701440046,-193.53,0.00016438,2]
[323130756,1713701440055,-1454.42,0.00016438,2]
[323130757,1713701440065,-639.96,0.00016438,2]
[323130758,1713701440074,-403.88267915,0.00016438,2]
[323130759,1713701440084,-916.54,0.00016438,2]
[323130760,1713701440093,-812.29,0.00016438,2]
[323130761,1713701440104,-299.67416876,0.00016438,2]
[323130762,1713701440114,-1223.81,0.00016438,2]
[323130763,1713701440124,-1281.55,0.00016438,2]
[323130764,1713701440134,-447.18139229,0.00016438,2]
[323130765,1713701440145,-1047.76,0.00016438,2]
[323130766,1713701440154,-836.56,0.00016438,2]
[323130767,1713701440165,-500.0,0.00016438,2]
[323130768,1713701440174,-500.0,0.00016438,2]
[323130769,1713701440183,-1308.62,0.00016438,2]
[323130770,1713701440192,-500.0,0.00016438,2]
[323130771,1713701440201,-974.13,0.00016438,2]
[323130772,1713701440210,-500.0,0.00016438,2]
[323130773,1713701440220,-309.36589737,0.00016438,2]
[323130774,1713701440230,-488.0,0.00016438,2]
[323130775,1713701440239,-638.72,0.00016438,2]
[323130776,1713701440250,-1106.35,0.00016438,2]
[323130777,1713701440267,-209.79494234,0.00016438,2]
[323130779,1713701440277,-293.45,0.00016438,2]
[323130781,1713701440286,-500.0,0.00016438,2]
[323130782,1713701440295,-500.0,0.00016438,2]
[323130783,1713701440304,-1852.52,0.00016438,2]
[323130784,1713701440314,-1061.07,0.00016438,2]
[323130785,1713701440322,-596.31,0.00016438,2]
[323130786,1713701440333,-500.0,0.00016438,2]
[323130787,1713701440342,-888.05,0.00016438,2]
[323130788,1713701440352,-500.0,0.00016438,2]
[323130789,1713701440361,-500.0,0.00016438,2]
[323130790,1713701440370,-500.0,0.00016438,2]
[323130791,1713701440379,-500.0,0.00016438,2]
[323130792,1713701440388,-500.0,0.00016438,2]
[323130793,1713701440397,-1054.7,0.00016438,2]
[323130794,1713701440406,-612.50262025,0.00016438,2]
[323130795,1713701440416,-1717.81,0.00016438,2]
[323130796,1713701440425,-500.0,0.00016438,2]
[323130797,1713701440435,-500.0,0.00016438,2]
[323130798,1713701440444,-936.84,0.00016438,2]
[323130799,1713701440454,-535.56,0.00016438,2]
[323130800,1713701440463,-1131.8,0.00016438,2]
[323130801,1713701440472,-500.0,0.00016438,2]
[323130802,1713701440481,-1779.9,0.00016438,2]
[323130803,1713701440490,-500.0,0.00016438,2]
[323130804,1713701440501,-610.89,0.00016438,2]
[323130805,1713701440510,-500.0,0.00016438,2]
[323130806,1713701440519,-500.0,0.00016438,2]
[323130807,1713701440529,-1185.99,0.00016438,2]
[323130808,1713701440538,-500.0,0.00016438,2]
[323130809,1713701440548,-500.0,0.00016438,2]
[323130810,1713701440762,-242.15,0.00016438,2]
[323130811,1713701440772,-497.0,0.00016438,2]
[323130812,1713701440781,-500.0,0.00016438,2]
[323130813,1713701440790,-371.17,0.00016438,2]
[323130814,1713701440799,-500.0,0.00016438,2]
[323130815,1713701440808,-999.99,0.00016438,2]
[323130816,1713701440817,-500.0,0.00016438,2]
[323130817,1713701440827,-1232.59,0.00016438,2]
[323130818,1713701440836,-857.29,0.00016438,2]
[323130819,1713701440845,-948.8,0.00016438,2]
[323130820,1713701440854,-789.61,0.00016438,2]
[323130821,1713701440863,-500.0,0.00016438,2]
[323130822,1713701440873,-1141.66,0.00016438,2]
[323130823,1713701440883,-500.0,0.00016438,2]
[323130824,1713701440892,-194.45,0.00016438,2]
[323130825,1713701440900,-500.0,0.00016438,2]
[323130826,1713701440910,-847.98,0.00016438,2]
[323130827,1713701440919,-499.06951869,0.00016438,2]
[323130829,1713701440928,-500.0,0.00016438,2]
[323130830,1713701440937,-500.0,0.00016438,2]
[323130831,1713701440947,-787.7,0.00016438,2]
[323130832,1713701440959,-1197.07,0.00016438,2]
[323130833,1713701440968,-534.27,0.00016438,2]
[323130834,1713701440977,-804.33,0.00016438,2]
[323130835,1713701440987,-500.0,0.00016438,2]
[323130836,1713701440996,-996.42,0.00016438,2]
[323130837,1713701441004,-500.0,0.00016438,2]
[323130838,1713701441014,-672.35,0.00016438,2]
[323130839,1713701441023,-227.57,0.00016438,2]
[323130840,1713701441032,-500.0,0.00016438,2]
[323130841,1713701441041,-500.0,0.00016438,2]
[323130842,1713701441050,-500.0,0.00016438,2]
[323130843,1713701441060,-500.0,0.00016438,2]
[323130844,1713701441070,-821.33,0.00016438,2]
[323130845,1713701441080,-500.0,0.00016438,2]
[323130846,1713701441089,-500.0,0.00016438,2]
[323130847,1713701441099,-500.0,0.00016438,2]
[323130848,1713701441108,-685.27,0.00016438,2]
[323130849,1713701441117,-500.0,0.00016438,2]
[323130850,1713701441126,-802.0,0.00016438,2]
[323130851,1713701441135,-1331.29,0.00016438,2]
[323130852,1713701441144,-1428.92,0.00016438,2]
[323130853,1713701441154,-500.0,0.00016438,2]
[323130854,1713701441162,-500.0,0.00016438,2]
[323130855,1713701441172,-500.0,0.00016438,2]
[323130856,1713701441181,-1089.56,0.00016438,2]
[323130857,1713701441190,-500.0,0.00016438,2]
[323130858,1713701441200,-500.0,0.00016438,2]
[323130859,1713701441209,-500.0,0.00016438,2]
[323130860,1713701441218,-500.0,0.00016438,2]
[323130861,1713701441227,-500.0,0.00016438,2]
[323130862,1713701441236,-500.0,0.00016438,2]
[323130863,1713701441246,-500.0,0.00016438,2]
[323130864,1713701441258,-500.0,0.00016438,2]
[323130865,1713701441267,-500.0,0.00016438,2]
[323130866,1713701441276,-500.0,0.00016438,2]
[323130867,1713701441285,-480.37444377,0.00016438,2]
[323130868,1713701441295,-500.0,0.00016438,2]
[323130869,1713701441305,-500.0,0.00016438,2]
[323130870,1713701441315,-753.37,0.00016438,2]
[323130871,1713701441325,-500.0,0.00016438,2]
[323130872,1713701441336,-500.0,0.00016438,2]
[323130873,1713701441345,-1341.63,0.00016438,2]
[323130874,1713701441355,-500.0,0.00016438,2]
[323130875,1713701441364,-500.0,0.00016438,2]
[323130876,1713701441374,-363.53802358,0.00016438,2]
[323130877,1713701441383,-500.0,0.00016438,2]
[323130878,1713701441393,-500.0,0.00016438,2]
[323130879,1713701441401,-1167.65,0.00016438,2]
[323130880,1713701441411,-150.0,0.00016438,2]
[323130881,1713701441420,-500.0,0.00016438,2]
[323130882,1713701441429,-1166.75,0.00016438,2]
[323130883,1713701441439,-282.95,0.00016438,2]
[323130884,1713701441448,-500.0,0.00016438,2]
[323130885,1713701441459,-900.17,0.00016438,2]
[323130886,1713701441468,-500.0,0.00016438,2]
[323130887,1713701441477,-500.0,0.00016438,2]
[323130888,1713701441486,-500.0,0.00016438,2]
[323130889,1713701441495,-500.0,0.00016438,2]
[323130890,1713701441505,-500.0,0.00016438,2]
[323130891,1713701441514,-816.42,0.00016438,2]
[323130892,1713701441523,-500.0,0.00016438,2]
[323130893,1713701441532,-500.0,0.00016438,2]
[323130894,1713701441541,-500.0,0.00016438,2]
[323130895,1713701441551,-500.0,0.00016438,2]
[323130896,1713701441560,-372.58,0.00016438,2]
[323130897,1713701441569,-500.0,0.00016438,2]
[323130898,1713701441578,-956.86,0.00016438,2]
[323130899,1713701441587,-500.0,0.00016438,2]
[323130900,1713701441596,-674.62,0.00016438,2]
[323130901,1713701441605,-500.0,0.00016438,2]
[323130902,1713701441614,-500.0,0.00016438,2]
[323130903,1713701441623,-500.0,0.00016438,2]
[323130904,1713701441632,-391.39297556,0.00016438,2]
[323130905,1713701441641,-500.0,0.00016438,2]
[323130906,1713701441651,-985.48,0.00016438,2]
[323130907,1713701441660,-500.0,0.00016438,2]
[323130908,1713701441669,-1032.73,0.00016438,2]
[323130909,1713701441679,-500.0,0.00016438,2]
[323130910,1713701441688,-500.0,0.00016438,2]
[323130911,1713701441698,-500.0,0.00016438,2]
[323130912,1713701441707,-500.0,0.00016438,2]
[323130913,1713701441716,-500.0,0.00016438,2]
[323130914,1713701441726,-500.0,0.00016438,2]
[323130915,1713701441735,-500.0,0.00016438,2]
[323130916,1713701441744,-500.0,0.00016438,2]
[323130917,1713701441753,-500.0,0.00016438,2]
[323130918,1713701441762,-500.0,0.00016438,2]
[323130919,1713701441771,-500.0,0.00016438,2]
[323130920,1713701441781,-500.0,0.00016438,2]
[323130921,1713701441790,-500.0,0.00016438,2]
[323130922,1713701441799,-500.0,0.00016438,2]
[323130923,1713701441808,-500.0,0.00016438,2]
[323130924,1713701441818,-914.0,0.00016438,2]
[323130925,1713701441827,-500.0,0.00016438,2]
[323130926,1713701441837,-500.0,0.00016438,2]
[323130927,1713701441848,-500.0,0.00016438,2]
[323130928,1713701441858,-161.84,0.00016438,2]
[323130929,1713701441868,-500.0,0.00016438,2]
[323130930,1713701441877,-1141.68,0.00016438,2]
[323130931,1713701441887,-500.0,0.00016438,2]
[323130932,1713701441897,-500.0,0.00016438,2]
[323130933,1713701441907,-500.0,0.00016438,2]
[323130934,1713701441917,-1213.76,0.00016438,2]
[323130935,1713701441927,-522.55,0.00016438,2]
[323130936,1713701441937,-500.0,0.00016438,2]
[323130937,1713701441947,-2305.86,0.00016438,2]
[323130938,1713701441958,-2305.86,0.00016438,2]
[323130939,1713701441968,-2305.86,0.00016438,2]
[323130940,1713701441977,-500.0,0.00016438,2]
[323130941,1713701441987,-2305.86,0.00016438,2]
[323130942,1713701441997,-500.0,0.00016438,2]
[323130943,1713701442007,-500.0,0.00016438,2]
[323130944,1713701442019,-500.0,0.00016438,2]
[323130945,1713701442029,-510.15,0.00016438,2]
[323130946,1713701442038,-624.8,0.00016438,2]
[323130947,1713701442048,-500.0,0.00016438,2]
[323130948,1713701442057,-150.0,0.00016438,2]
[323130949,1713701442067,-500.0,0.00016438,2]
[323130950,1713701442077,-264.17,0.00016438,2]
[323130951,1713701442086,-1226.09,0.00016438,2]
[323130952,1713701442095,-602.15,0.00016438,2]
[323130953,1713701442105,-921.31,0.00016438,2]
[323130954,1713701442115,-500.0,0.00016438,2]
[323130955,1713701442125,-500.0,0.00016438,2]
[323130956,1713701442134,-889.01,0.00016438,2]
[323130957,1713701442143,-500.0,0.00016438,2]
[323130958,1713701442153,-500.0,0.00016438,2]
[323130959,1713701442163,-500.0,0.00016438,2]
[323130960,1713701442172,-500.0,0.00016438,2]
[323130961,1713701442183,-575.24,0.00016438,2]
[323130962,1713701442193,-904.68,0.00016438,2]
[323130963,1713701442203,-407.86060982,0.00016438,2]
[323130964,1713701442212,-500.0,0.00016438,2]
[323130965,1713701442221,-500.0,0.00016438,2]
[323130966,1713701442230,-920.68,0.00016438,2]
[323130967,1713701442239,-659.68,0.00016438,2]
[323130968,1713701442249,-500.0,0.00016438,2]
[323130969,1713701442262,-571.84,0.00016438,2]
[323130970,1713701442271,-500.0,0.00016438,2]
[323130971,1713701442280,-500.0,0.00016438,2]
[323130972,1713701442290,-245.95,0.00016438,2]
[323130973,1713701442301,-522.35,0.00016438,2]
[323130974,1713701442311,-500.0,0.00016438,2]
[323130975,1713701442320,-839.24,0.00016438,2]
[323130976,1713701442329,-602.88,0.00016438,2]
[323130977,1713701442340,-500.0,0.00016438,2]
[323130978,1713701442350,-500.0,0.00016438,2]
[323130979,1713701442359,-840.67,0.00016438,2]
[323130980,1713701442368,-303.01,0.00016438,2]
[323130981,1713701442378,-708.36,0.00016438,2]
[323130982,1713701442387,-500.0,0.00016438,2]
[323130983,1713701442396,-1062.39,0.00016438,2]
[323130984,1713701442406,-681.12,0.00016438,2]
[323130985,1713701442415,-574.0,0.00016438,2]
[323130986,1713701442425,-500.0,0.00016438,2]
[323130987,1713701442435,-500.0,0.00016438,2]
[323130988,1713701442444,-500.0,0.00016438,2]
[323130989,1713701442454,-500.0,0.00016438,2]
[323130990,1713701442463,-500.0,0.00016438,2]
[323130991,1713701442473,-500.0,0.00016438,2]
[323130992,1713701442482,-500.0,0.00016438,2]
[323130993,1713701442492,-500.0,0.00016438,2]
[323130994,1713701442501,-500.0,0.00016438,2]
[323130995,1713701442510,-500.0,0.00016438,2]
[323130996,1713701442520,-500.0,0.00016438,2]
[323130997,1713701442529,-500.0,0.00016438,2]
[323130998,1713701442539,-500.0,0.00016438,2]
[323130999,1713701442548,-500.0,0.00016438,2]
[323131000,1713701442558,-500.0,0.00016438,2]
[323131001,1713701442567,-545.52493379,0.00016438,2]
[323131002,1713701442577,-500.0,0.00016438,2]
[323131003,1713701442586,-924.92,0.00016438,2]
[323131004,1713701442595,-500.0,0.00016438,2]
[323131005,1713701442604,-1100.76,0.00016438,2]
[323131006,1713701442613,-1188.64,0.00016438,2]
[323131007,1713701442623,-500.0,0.00016438,2]
[323131008,1713701442632,-722.65,0.00016438,2]
[323131009,1713701442641,-500.0,0.00016438,2]
[323131010,1713701442651,-546.09017549,0.00016438,2]
[323131011,1713701442660,-500.0,0.00016438,2]
[323131012,1713701442669,-500.0,0.00016438,2]
[323131013,1713701442679,-629.6,0.00016438,2]
[323131014,1713701442688,-500.0,0.00016438,2]
[323131015,1713701442698,-439.38,0.00016438,2]
[323131016,1713701442708,-1299.44,0.00016438,2]
[323131017,1713701442717,-500.0,0.00016438,2]
[323131018,1713701442726,-500.0,0.00016438,2]
[323131019,1713701442736,-440.23,0.00016438,2]
[323131020,1713701442745,-521.6241852,0.00016438,2]
[323131021,1713701442754,-810.95,0.00016438,2]
[323131022,1713701442764,-372.17,0.00016438,2]
[323131023,1713701442773,-500.0,0.00016438,2]
[323131024,1713701442782,-500.0,0.00016438,2]
[323131025,1713701442792,-500.0,0.00016438,2]
[323131026,1713701442801,-1614.76,0.00016438,2]
[323131027,1713701442810,-1214.25,0.00016438,2]
[323131028,1713701442820,-613.09,0.00016438,2]
[323131029,1713701442829,-500.0,0.00016438,2]
[323131030,1713701442838,-684.32,0.00016438,2]
[323131031,1713701442848,-500.0,0.00016438,2]
[323131032,1713701442857,-726.59,0.00016438,2]
[323131033,1713701442866,-535.87,0.00016438,2]
[323131034,1713701442874,-500.0,0.00016438,2]
[323131035,1713701442884,-500.0,0.00016438,2]
[323131036,1713701442894,-551.1,0.00016438,2]
[323131037,1713701442903,-500.0,0.00016438,2]
[323131038,1713701442912,-533.57,0.00016438,2]
[323131039,1713701442924,-500.0,0.00016438,2]
[323131040,1713701442933,-3.21815222,0.00016438,2]
[323131041,1713701442964,-961.61184778,0.00016438,2]
[323131042,1713701442973,-1139.21,0.00016438,2]
[323131043,1713701442982,-1566.16,0.00016438,2]
[323131044,1713701442991,-1387.9,0.00016438,2]
[323131045,1713701443000,-500.0,0.00016438,2]
[323131046,1713701443010,-500.0,0.00016438,2]
[323131047,1713701443019,-482.05448522,0.00016438,2]
[323131058,1713701443219,-17.94551478,0.00016438,2]
[323131060,1713701443228,-500.0,0.00016438,2]
[323131062,1713701443237,-1903.88,0.00016438,2]
[323131066,1713701443247,-704.9,0.00016438,2]
[323131070,1713701443259,-500.0,0.00016438,2]
[323131074,1713701443269,-213.61122564,0.00016438,2]
[323131078,1713701443278,-563.84,0.00016438,2]
[323131080,1713701443287,-500.0,0.00016438,2]
[323131081,1713701443296,-574.8777202,0.00016438,2]
[323131084,1713701443306,-500.0,0.00016438,2]
[323131086,1713701443315,-500.0,0.00016438,2]
[323131088,1713701443324,-500.0,0.00016438,2]
[323131090,1713701443335,-230.99,0.00016438,2]
[323131092,1713701443345,-903.18,0.00016438,2]
[323131094,1713701443354,-318.57099991,0.00016438,2]
[323131096,1713701443363,-563.72,0.00016438,2]
[323131098,1713701443372,-245.72,0.00016438,2]
[323131099,1713701443382,-500.0,0.00016438,2]
[323131100,1713701443391,-500.0,0.00016438,2]
[323131101,1713701443400,-228.15522037,0.00016438,2]
[323131102,1713701443410,-1602.39,0.00016438,2]
[323131103,1713701443420,-500.37451988,0.00016438,2]
[323131104,1713701443430,-500.0,0.00016438,2]
[323131105,1713701443439,-1124.97,0.00016438,2]
[323131106,1713701443448,-1431.27,0.00016438,2]
[323131107,1713701443459,-500.0,0.00016438,2]
[323131108,1713701443469,-500.0,0.00016438,2]
[323131109,1713701443479,-885.5,0.00016438,2]
[323131110,1713701443488,-893.67,0.00016438,2]
[323131111,1713701443498,-500.0,0.00016438,2]
[323131112,1713701443507,-500.0,0.00016438,2]
[323131113,1713701443517,-192.40242684,0.00016438,2]
[323131114,1713701443527,-500.0,0.00016438,2]
[323131115,1713701443536,-500.0,0.00016438,2]
[323131116,1713701443546,-500.0,0.00016438,2]
[323131117,1713701443555,-500.0,0.00016438,2]
[323131118,1713701443565,-707.14,0.00016438,2]
[323131119,1713701443574,-650.44,0.00016438,2]
[323131120,1713701443583,-500.0,0.00016438,2]
[323131121,1713701443593,-726.71,0.00016438,2]
[323131122,1713701443602,-516.49813209,0.00016438,2]
[323131123,1713701443611,-500.0,0.00016438,2]
[323131124,1713701443620,-226.75,0.00016438,2]
[323131125,1713701443629,-1320.9,0.00016438,2]
[323131126,1713701443639,-500.0,0.00016438,2]
[323131127,1713701443649,-500.0,0.00016438,2]
[323131128,1713701443659,-500.0,0.00016438,2]
[323131129,1713701443668,-669.09,0.00016438,2]
[323131130,1713701443677,-500.0,0.00016438,2]
[323131131,1713701443686,-500.0,0.00016438,2]
[323131132,1713701443696,-500.0,0.00016438,2]
[323131133,1713701443706,-500.0,0.00016438,2]
[323131134,1713701443716,-500.0,0.00016438,2]
[323131135,1713701443726,-1555.49,0.00016438,2]
[323131136,1713701443737,-248.41,0.00016438,2]
[323131137,1713701443747,-964.05,0.00016438,2]
[323131138,1713701443756,-500.0,0.00016438,2]
[323131139,1713701443766,-1135.47,0.00016438,2]
[323131140,1713701443775,-404.97418365,0.00016438,2]
[323131141,1713701443787,-667.45,0.00016438,2]
[323131142,1713701443797,-434.1,0.00016438,2]
[323131143,1713701443807,-864.17,0.00016438,2]
[323131144,1713701443818,-500.0,0.00016438,2]
[323131145,1713701443828,-500.0,0.00016438,2]
[323131146,1713701443838,-1630.31,0.00016438,2]
[323131148,1713701443849,-500.0,0.00016438,2]
[323131149,1713701443858,-946.1,0.00016438,2]
[323131150,1713701443867,-500.0,0.00016438,2]
[323131151,1713701443876,-414.65506966,0.00016438,2]
[323131152,1713701443886,-373.7394006,0.00016438,2]
[323131153,1713701443895,-1426.61,0.00016438,2]
[323131154,1713701443904,-1026.66,0.00016438,2]
[323131155,1713701443913,-2402.26,0.00016438,2]
[323131156,1713701443922,-500.11112978,0.00016438,2]
[323131157,1713701443932,-455.49,0.00016438,2]
[323131158,1713701443942,-500.0,0.00016438,2]
[323131159,1713701443952,-500.0,0.00016438,2]
[323131160,1713701443961,-720.92,0.00016438,2]
[323131161,1713701443970,-500.23071144,0.00016438,2]
[323131162,1713701443979,-1417.34,0.00016438,2]
[323131163,1713701443988,-500.0,0.00016438,2]
[323131164,1713701443998,-610.81,0.00016438,2]
[323131165,1713701444008,-836.38,0.00016438,2]
[323131166,1713701444019,-500.0,0.00016438,2]